bitfinex/quotes_ETHUSD_20250909
["timestamp","ask_amount","ask_price","bid_price","bid_amount"]
[1757436069409,14.2115662,4282.9,4282.8,1e-08]
[1757436073183,16.6695662,4282.9,4282.8,1e-08]
[1757436073521,16.47947417,4282.9,4282.8,1e-08]
[1757436073942,10.46249172,4282.9,4282.8,1e-08]
[1757436074127,9.02929759,4282.9,4282.8,1.25270001]
[1757436074328,9.09858375,4282.9,4282.8,1.25270001]
[1757436074619,12.09858375,4282.9,4282.8,1.25270001]
[1757436075035,9.09858375,4282.9,4282.8,1.25270001]
[1757436075338,12.09858375,4282.9,4282.8,1.25270001]
[1757436076438,19.09714239,4282.9,4282.8,1.25270001]
[1757436077142,19.09714239,4282.9,4282.8,0.75750001]
[1757436077504,15.19314239,4282.9,4282.8,1.25270001]
[1757436077703,6.76271719,4282.9,4282.8,1.25270001]
[1757436077902,2.14203951,4282.9,4282.8,1.37817001]
[1757436078139,6.16103951,4282.9,4282.8,1.37817001]
[1757436078446,6.03038191,4282.9,4282.8,1.37817001]
[1757436079614,5.91438191,4282.9,4282.8,3.71309108]
[1757436079821,5.697,4282.9,4282.8,3.71309108]
[1757436081670,5.697,4282.9,4282.8,1.37817001]
[1757436081959,6.03025616,4282.9,4282.8,1.37817001]
[1757436083235,6.03025616,4282.9,4282.8,3.71309108]
[1757436083437,5.697,4282.9,4282.8,3.71309108]
[1757436085164,1.794,4282.9,4282.8,3.71309108]
[1757436085372,5.696,4282.9,4282.8,3.71309108]
[1757436085965,5.696,4282.9,4282.8,0.90887001]
[1757436086164,5.91315005,4282.9,4282.8,1e-08]
[1757436086576,8.41861661,4282.9,4282.8,1e-08]
[1757436086786,12.02390395,4282.9,4282.8,1e-08]
[1757436086939,12.52422084,4282.9,4282.8,1e-08]
[1757436087140,14.92720859,4282.9,4282.8,1e-08]
[1757436087357,14.7100749,4282.9,4282.8,1e-08]
[1757436087864,14.2350749,4282.9,4282.8,1e-08]
[1757436089272,14.4522225,4282.9,4282.8,1e-08]
[1757436089675,8.19376844,4282.9,4282.8,0.28820001]
[1757436089878,11.59545155,4282.9,4282.8,1e-08]
[1757436090038,12.09576844,4282.9,4282.8,1e-08]
[1757436091480,11.87862084,4282.9,4282.8,1e-08]
[1757436091698,12.09586737,4282.9,4282.8,1e-08]
[1757436092047,12.26646737,4282.9,4282.8,1e-08]
[1757436092247,12.09586737,4282.9,4282.8,1e-08]
[1757436092938,11.87862084,4282.9,4282.8,1e-08]
[1757436093139,12.09588121,4282.9,4282.8,1e-08]
[1757436094482,14.36378918,4282.9,4282.8,0.28790001]
[1757436094841,14.36395084,4282.9,4282.8,1e-08]
[1757436095244,14.36400017,4282.9,4282.8,1e-08]
[1757436095778,2.33503767,4282.6,4282.4,0.4952]
[1757436095987,3.116,4282.8,4282.3,0.002]
[1757436095988,0.116,4282.4,4282.3,0.002]
[1757436096301,0.33331171,4282.4,4282.3,0.002]
[1757436096494,0.33331171,4282.4,4282.3,0.2899]
[1757436096699,0.33331171,4282.4,4282.3,0.761]
[1757436097281,4.018,4282.4,4282.3,0.761]
[1757436097486,4.23531171,4282.4,4282.3,0.761]
[1757436097794,4.23531171,4282.4,4282.3,1.2076]
[1757436098159,2.96035088,4282.4,4282.3,0.002]
[1757436098362,6.64503917,4282.4,4282.3,0.002]
[1757436098555,6.57045088,4282.4,4282.3,0.002]
[1757436098893,6.57049101,4282.4,4282.3,0.002]
[1757436099258,4.23535184,4282.4,4282.3,0.002]
[1757436099786,4.23535184,4282.4,4282.3,0.2899]
[1757436099953,4.23535184,4282.4,4282.3,1.2076]
[1757436100150,0.33335184,4282.4,4282.3,1.2076]
[1757436100353,4.017,4282.4,4282.3,1.2076]
[1757436100549,0.33335184,4282.4,4282.3,1.33236]
[1757436100793,3.901,4282.4,4282.3,3.6675537]
[1757436102807,1.794,4282.9,4282.8,2.33492107]
[1757436103099,5.695,4282.9,4282.8,3.54052107]
[1757436103652,1.794,4282.9,4282.8,3.54052107]
[1757436103859,5.695,4282.9,4282.8,4.1280724]
[1757436104374,3.902,4282.9,4282.8,4.1280724]
[1757436107668,0.001,4282.9,4282.8,4.94342161]
[1757436107872,0.001,4282.9,4282.8,7.9200724]
[1757436110706,0.001,4282.9,4282.8,8.0360724]
[1757436111933,0.001,4282.9,4282.8,5.0360724]
[1757436118849,0.001,4282.9,4282.8,11.9350724]
[1757436122339,0.001,4282.9,4282.8,8.0360724]
[1757436122546,0.001,4282.9,4282.8,7.6823724]
[1757436123207,0.001,4282.9,4282.8,8.4743724]
[1757436124846,0.001,4282.9,4282.8,8.9441724]
[1757436126637,0.001,4282.9,4282.8,7.7284724]
[1757436127361,0.001,4283.2,4283.1,0.792]
[1757436127762,0.2212,4283.2,4283.1,3.24275753]
[1757436128359,0.2212,4283.2,4283.1,2.45075753]
[1757436128563,0.7117,4283.2,4283.1,2.45075753]
[1757436129059,0.2212,4283.2,4283.1,2.45075753]
[1757436130219,0.2212,4283.2,4283.1,0.116]
[1757436130419,0.2212,4283.2,4283.1,2.45075753]
[1757436132856,0.2212,4283.2,4283.1,0.116]
[1757436133057,0.2212,4283.2,4283.1,2.45075753]
[1757436134226,0.001,4283.2,4283.1,2.45075753]
[1757436135834,0.2212,4283.2,4283.1,2.45075753]
[1757436136458,0.001,4283.2,4283.1,2.45075753]
[1757436136849,0.001,4283.2,4283.1,3.22515753]
[1757436138167,0.001,4283.2,4283.1,2.76715753]
[1757436138370,0.001,4283.2,4283.1,2.45075753]
[1757436139366,0.001,4283.2,4283.1,3.23695753]
[1757436139535,0.001,4283.2,4283.1,4.43881512]
[1757436140250,0.001,4283.2,4283.1,3.96901512]
[1757436141065,0.001,4283.2,4283.1,4.43881512]
[1757436141272,0.001,4283.2,4283.1,5.23081512]
[1757436148769,0.001,4283.2,4283.1,5.34568212]
[1757436148993,0.001,4283.2,4283.1,5.23081512]
[1757436153174,0.001,4283.2,4283.1,8.23081512]
[1757436161433,0.2091,4283.2,4283.1,1.65185759]
[1757436161635,0.2091,4283.2,4283.1,0.116]
[1757436161636,3.44610302,4283.2,4283.1,0.116]
[1757436161836,2.33481204,4283.0,4282.9,0.00586188]
[1757436162018,2.55281768,4283.0,4282.9,0.00586188]
[1757436162333,3.66421768,4283.0,4282.9,0.00586188]
[1757436162629,5.38092299,4283.0,4282.9,0.00586188]
[1757436163139,8.38092299,4283.0,4282.9,0.00586188]
[1757436165042,8.51139477,4283.0,4282.9,0.00586188]
[1757436165394,8.72870525,4283.0,4282.9,0.00586188]
[1757436165814,9.32424213,4283.0,4282.9,0.00586188]
[1757436166097,3.116,4282.9,4282.6,1e-08]
[1757436166314,14.07723485,4282.7,4282.6,1e-08]
[1757436166491,15.45011402,4282.7,4282.6,1e-08]
[1757436166696,16.25651402,4282.7,4282.6,1e-08]
[1757436167508,16.03920354,4282.7,4282.6,1e-08]
[1757436167758,17.75590885,4282.7,4282.6,1e-08]
[1757436171196,17.62543707,4282.7,4282.6,1e-08]
[1757436171562,17.1233458,4282.7,4282.6,1e-08]
[1757436171767,17.75215018,4282.7,4282.6,1e-08]
[1757436172234,17.62221152,4282.7,4282.6,1e-08]
[1757436173057,17.1233458,4282.7,4282.6,1e-08]
[1757436173732,21.0193458,4282.7,4282.6,1e-08]
[1757436176713,17.1233458,4282.7,4282.6,1e-08]
[1757436176915,23.4773458,4282.7,4282.6,1e-08]
[1757436177120,21.0193458,4282.7,4282.6,1e-08]
[1757436177454,7.57468654,4282.7,4282.6,1e-08]
[1757436177632,12.27708654,4282.7,4282.6,1e-08]
[1757436178959,8.03528654,4282.7,4282.6,1e-08]
[1757436179254,7.26968654,4282.7,4282.6,1e-08]
[1757436179454,10.9476809,4282.7,4282.6,1e-08]
[1757436181967,2.33508464,4282.5,4282.3,0.002]
[1757436182265,10.09722842,4282.5,4282.3,0.002]
[1757436182452,10.52424029,4282.5,4282.3,0.002]
[1757436182654,11.45824029,4282.5,4282.3,0.002]
[1757436185466,11.01884029,4282.5,4282.3,0.002]
[1757436185668,6.41774029,4282.5,4282.3,0.002]
[1757436185834,10.40718896,4282.5,4282.3,0.002]
[1757436186810,10.60738896,4282.5,4282.4,0.002]
[1757436187374,11.10729689,4282.5,4282.4,0.002]
[1757436188384,7.01109689,4282.5,4282.4,0.7699]
[1757436188600,9.44759651,4282.5,4282.4,1.2021]
[1757436189101,9.44759651,4282.5,4282.4,0.7228]
[1757436189494,9.94837731,4282.5,4282.4,0.7228]
[1757436189697,9.94837731,4282.5,4282.4,1.2021]
[1757436189875,9.44759651,4282.5,4282.4,1.2021]
[1757436190295,9.94839568,4282.5,4282.4,1.2021]
[1757436190497,9.94839568,4282.5,4282.4,0.7228]
[1757436191237,10.07918559,4282.5,4282.4,0.7228]
[1757436192736,10.07918559,4282.5,4282.4,1.2021]
[1757436193497,10.70483462,4282.5,4282.4,1.2021]
[1757436193736,3.18318559,4282.5,4282.4,1.2021]
[1757436193935,4.74410095,4282.5,4282.4,1.32671]
[1757436194099,4.61331104,4282.5,4282.4,1.32671]
[1757436194515,6.94839568,4282.5,4282.4,1.32671]
[1757436194728,6.94839568,4282.5,4282.4,1.2021]
[1757436194924,7.14859568,4282.5,4282.4,0.002]
[1757436195126,11.22362031,4282.5,4282.4,0.002]
[1757436195328,10.9923633,4282.5,4282.4,0.002]
[1757436195536,11.4418633,4282.5,4282.4,0.002]
[1757436195739,14.54781126,4282.5,4282.4,0.002]
[1757436195935,13.70977127,4282.5,4282.4,0.002]
[1757436198467,20.71120088,4282.5,4282.4,0.002]
[1757436199743,20.80465435,4282.5,4282.4,0.002]
[1757436200333,20.35515435,4282.5,4282.4,0.002]
[1757436201426,20.40389008,4282.5,4282.4,1.2021]
[1757436201825,20.40389008,4282.5,4282.4,0.7228]
[1757436202063,19.56590088,4282.5,4282.4,1.2021]
[1757436203861,19.56590088,4282.5,4282.4,0.2906]
[1757436204066,19.56590088,4282.5,4282.4,0.7228]
[1757436204561,21.35890088,4282.5,4282.4,0.7228]
[1757436204925,15.19599291,4282.5,4282.4,0.2906]
[1757436205168,12.0895633,4282.5,4282.4,1.2021]
[1757436205712,6.62355403,4282.5,4282.4,1.2021]
[1757436206086,8.95863867,4282.5,4282.4,1.2021]
[1757436206645,8.4578395,4282.5,4282.4,1.2021]
[1757436206794,8.4578395,4282.5,4282.4,0.002]
[1757436206795,10.93077041,4282.5,4282.4,0.002]
[1757436207528,9.08956571,4282.5,4282.4,0.7228]
[1757436207738,9.08956571,4282.5,4282.4,0.2906]
[1757436207909,9.08956571,4282.5,4282.4,0.7228]
[1757436208393,9.08956571,4282.5,4282.4,0.2906]
[1757436208601,9.28976571,4282.5,4282.4,0.002]
[1757436208799,11.22693681,4282.5,4282.4,0.002]
[1757436209528,11.02673681,4282.5,4282.4,0.002]
[1757436210728,11.02673681,4282.5,4282.4,0.2906]
[1757436210897,11.02673681,4282.5,4282.4,0.7228]
[1757436211499,9.08956571,4282.5,4282.4,1.2021]
[1757436212126,9.08956571,4282.5,4282.4,0.7228]
[1757436212496,9.28976571,4282.5,4282.4,0.002]
[1757436212931,9.08956571,4282.5,4282.4,0.002]
[1757436213138,9.08956571,4282.5,4282.4,0.295]
[1757436215225,9.08956571,4282.5,4282.4,0.002]
[1757436216716,9.08956571,4282.5,4282.4,0.295]
[1757436218042,9.08956571,4282.5,4282.4,0.7602]
[1757436218940,2.85948107,4282.5,4282.4,1.2215]
[1757436219143,4.11151187,4282.5,4282.4,1.3503853]
[1757436219831,4.11151187,4282.5,4282.4,1.2215]
[1757436220042,6.44659651,4282.5,4282.4,1.2215]
[1757436220239,13.44802612,4282.5,4282.4,0.7602]
[1757436220640,11.61553222,4282.5,4282.4,1.2215]
[1757436220940,13.95061686,4282.5,4282.4,1.2215]
[1757436221444,6.94918725,4282.5,4282.4,1.2215]
[1757436221608,6.44659651,4282.5,4282.4,1.2215]
[1757436223626,6.44559651,4282.5,4282.4,1.2215]
[1757436226079,6.44559651,4282.5,4282.4,0.7602]
[1757436226367,13.44702612,4282.5,4282.4,0.002]
[1757436226663,14.16871686,4282.5,4282.4,0.002]
[1757436227252,14.51776765,4282.5,4282.4,0.002]
[1757436227447,14.30125578,4282.5,4282.4,0.002]
[1757436228070,16.15587958,4282.5,4282.4,0.002]
[1757436228233,16.65567958,4282.5,4282.4,0.002]
[1757436228434,16.15587958,4282.5,4282.4,0.002]
[1757436229473,15.93677958,4282.5,4282.4,0.002]
[1757436230435,15.93691852,4282.5,4282.4,0.002]
[1757436231537,12.04291852,4282.5,4282.4,0.002]
[1757436231758,7.08086511,4282.5,4282.4,0.295]
[1757436232081,7.08086511,4282.5,4282.4,1.2215]
[1757436232288,6.57827437,4282.5,4282.4,0.7602]
[1757436233090,7.08086511,4282.5,4282.4,0.002]
[1757436233292,7.29996511,4282.5,4282.4,0.002]
[1757436233488,9.2674365,4282.5,4282.4,0.002]
[1757436234392,9.7672365,4282.5,4282.4,0.002]
[1757436234591,10.1980365,4282.5,4282.4,0.002]
[1757436234792,13.1980365,4282.5,4282.4,0.002]
[1757436234960,13.82657346,4282.5,4282.4,0.002]
[1757436235287,13.1980365,4282.5,4282.4,0.002]
[1757436235449,14.0360257,4282.5,4282.4,0.002]
[1757436236190,13.1980365,4282.5,4282.4,0.002]
[1757436238082,20.19946611,4282.5,4282.4,0.002]
[1757436238879,19.76866611,4282.5,4282.4,0.002]
[1757436239263,19.26886611,4282.5,4282.4,0.002]
[1757436239594,19.76866611,4282.5,4282.4,0.002]
[1757436241008,20.19946611,4282.5,4282.4,0.002]
[1757436241296,20.19946611,4282.5,4282.1,0.042]
[1757436241297,3.0,4282.4,4282.1,0.042]
[1757436241511,2.33524823,4282.2,4282.1,0.042]
[1757436241803,3.4082287,4282.2,4282.1,0.042]
[1757436242594,6.1870287,4282.2,4282.1,0.3586]
[1757436242936,10.70925096,4282.2,4282.1,0.042]
[1757436243087,12.67672235,4282.2,4282.1,0.042]
[1757436243284,12.04850009,4282.2,4282.1,0.042]
[1757436243588,12.67672235,4282.2,4282.1,0.042]
[1757436244099,12.89672235,4282.2,4282.1,0.042]
[1757436244299,12.26850009,4282.2,4282.1,0.042]
[1757436244800,13.15480009,4282.2,4282.1,0.042]
[1757436245297,12.72480009,4282.2,4282.1,0.042]
[1757436245475,12.26850009,4282.2,4282.1,0.042]
[1757436246597,12.04850009,4282.2,4282.1,0.042]
[1757436249517,12.27060009,4282.2,4282.1,0.042]
[1757436250040,12.89882235,4282.2,4282.1,0.042]
[1757436251483,12.89865463,4282.2,4282.1,0.042]
[1757436251906,12.67655463,4282.2,4282.1,0.042]
[1757436253020,12.89655463,4282.2,4282.1,0.042]
[1757436253583,12.26833237,4282.2,4282.1,0.042]
[1757436253812,12.89614355,4282.2,4282.1,0.042]
[1757436254020,12.26833237,4282.2,4282.1,0.042]
[1757436255989,12.72463237,4282.2,4282.1,0.042]
[1757436256710,12.26833237,4282.2,4282.1,0.042]
[1757436259532,12.04833237,4282.2,4282.1,0.042]
[1757436261636,4.39659074,4282.2,4282.1,1.2813]
[1757436261867,3.894,4282.2,4282.1,1.2813]
[1757436262569,6.22924823,4282.2,4282.1,1.2813]
[1757436263466,3.894,4282.2,4282.1,1.2813]
[1757436266133,3.893,4282.2,4282.1,1.2813]
[1757436266332,3.893,4282.2,4282.1,1.41233]
[1757436267981,0.001,4282.3,4282.1,1.41233]
[1757436268276,3.893,4282.2,4282.1,0.48963]
[1757436268476,3.893,4282.2,4282.1,0.3586]
[1757436268672,3.893,4282.2,4282.1,1.2813]
[1757436269173,3.893,4282.2,4282.1,0.3586]
[1757436269382,6.22824823,4282.2,4282.1,0.8107]
[1757436269555,3.893,4282.2,4282.1,1.2813]
[1757436269756,0.001,4282.3,4282.1,1.41233]
[1757436269956,3.893,4282.2,4282.1,0.48963]
[1757436270163,3.893,4282.2,4282.1,0.3586]
[1757436270361,6.22824823,4282.2,4282.1,0.3586]
[1757436270680,6.22824823,4282.2,4282.1,1.2813]
[1757436271061,3.893,4282.2,4282.1,1.2813]
[1757436271762,6.22824823,4282.2,4282.1,1.2813]
[1757436272467,3.893,4282.2,4282.1,1.2813]
[1757436274094,6.22824823,4282.2,4282.1,1.2813]
[1757436274856,3.893,4282.2,4282.1,1.2813]
[1757436276259,6.22824823,4282.2,4282.1,1.2813]
[1757436276454,6.22824823,4282.2,4282.1,0.042]
[1757436277213,6.52464823,4282.2,4282.1,0.042]
[1757436277773,6.22824823,4282.2,4282.1,0.042]
[1757436279203,6.22824823,4282.2,4282.1,0.3579]
[1757436280091,6.44004823,4282.2,4282.1,0.042]
[1757436280477,3.893,4282.2,4282.1,0.8134]
[1757436280678,6.22824823,4282.2,4282.1,0.8134]
[1757436281279,3.892,4282.2,4282.1,0.8134]
[1757436281478,3.892,4282.2,4282.1,1.3061]
[1757436281982,6.22724823,4282.2,4282.1,1.3061]
[1757436282677,6.22724823,4282.2,4282.1,0.8134]
[1757436285006,6.22724823,4282.2,4282.1,0.3579]
[1757436285193,3.892,4282.2,4282.1,0.3579]
[1757436285392,6.22724823,4282.2,4282.1,0.3579]
[1757436285592,6.22724823,4282.2,4282.1,0.8134]
[1757436285917,6.22724823,4282.2,4282.1,0.042]
[1757436286313,6.22724823,4282.2,4282.1,0.8134]
[1757436288067,6.22724823,4282.2,4282.1,0.3579]
[1757436290545,6.22724823,4282.2,4282.1,0.042]
[1757436292568,3.892,4282.2,4282.1,0.8134]
[1757436292870,6.22724823,4282.2,4282.1,0.8134]
[1757436293084,6.22724823,4282.2,4282.1,0.042]
[1757436294239,8.22604957,4282.2,4282.1,0.042]
[1757436294471,8.58034957,4282.2,4282.1,0.042]
[1757436294674,8.72889564,4282.2,4282.1,0.042]
[1757436294877,9.08319564,4282.2,4282.1,0.042]
[1757436295065,9.30182215,4282.2,4282.1,0.042]
[1757436295395,8.94752215,4282.2,4282.1,0.042]
[1757436295678,9.30182215,4282.2,4282.1,0.042]
[1757436296434,9.30179987,4282.2,4282.1,0.042]
[1757436296634,8.38919987,4282.2,4282.1,0.042]
[1757436296840,8.86289987,4282.2,4282.1,0.042]
[1757436298254,8.38919987,4282.2,4282.1,0.042]
[1757436298982,7.07987537,4282.2,4282.1,1.3061]
[1757436299179,0.85262714,4282.2,4282.1,1.3061]
[1757436299403,5.801,4282.2,4282.1,1.3061]
[1757436299706,5.93215456,4282.2,4282.1,1.3061]
[1757436300295,8.26740279,4282.2,4282.1,1.3061]
[1757436300493,8.26740279,4282.2,4282.1,0.8134]
[1757436300678,9.37804243,4282.2,4282.1,0.042]
[1757436301082,9.8808885,4282.2,4282.1,0.042]
[1757436301284,10.31117207,4282.2,4282.1,0.042]
[1757436302706,13.77537207,4282.2,4282.1,0.042]
[1757436302895,14.21337207,4282.2,4282.1,0.042]
[1757436303128,13.31117207,4282.2,4282.1,0.042]
[1757436303906,9.20737207,4282.2,4282.1,0.042]
[1757436304080,13.09837207,4282.2,4282.1,0.042]
[1757436304912,13.30847207,4282.2,4282.1,0.042]
[1757436305273,14.84047512,4282.2,4282.1,0.042]
[1757436305486,14.21247207,4282.2,4282.1,0.042]
[1757436306024,13.30847207,4282.2,4282.1,0.042]
[1757436306390,13.09837207,4282.2,4282.1,0.042]
[1757436307531,13.30847207,4282.2,4282.1,0.042]
[1757436307728,13.77267207,4282.2,4282.1,0.042]
[1757436307940,14.84047512,4282.2,4282.1,0.042]
[1757436308146,14.40067512,4282.2,4282.1,0.042]
[1757436308295,13.77267207,4282.2,4282.1,0.042]
[1757436308896,13.30847207,4282.2,4282.1,0.042]
[1757436309500,13.09837207,4282.2,4282.1,0.042]
[1757436310000,13.31077207,4282.2,4282.1,0.042]
[1757436311765,13.09837207,4282.2,4282.1,0.042]
[1757436312057,5.6454842,4282.2,4282.1,1.2533]
[1757436312268,11.36888636,4282.2,4282.1,0.8112]
[1757436312437,11.87173243,4282.2,4282.1,1.2533]
[1757436312637,11.87173243,4282.2,4282.1,0.3443]
[1757436312823,11.87173243,4282.2,4282.1,0.042]
[1757436313030,14.46942032,4282.2,4282.1,0.042]
[1757436313765,14.02962032,4282.2,4282.1,0.042]
[1757436313964,13.56542032,4282.2,4282.1,0.042]
[1757436314260,13.35532032,4282.2,4282.1,0.042]
[1757436314465,13.56772032,4282.2,4282.1,0.042]
[1757436315225,13.35532032,4282.2,4282.1,0.042]
[1757436315959,13.35532032,4282.2,4282.1,0.3443]
[1757436316167,13.35532032,4282.2,4282.1,0.7864]
[1757436316875,11.87173243,4282.2,4282.1,1.2533]
[1757436317221,11.87173243,4282.2,4282.1,0.7864]
[1757436318789,11.87173243,4282.2,4282.1,1.2533]
[1757436318790,8.5220943,4282.2,4282.1,1.2533]
[1757436318994,8.01924823,4282.2,4282.1,1.2533]
[1757436319397,5.684,4282.2,4282.1,1.2533]
[1757436319557,8.01924823,4282.2,4282.1,1.2533]
[1757436320657,4.12824823,4282.2,4282.1,1.2533]
[1757436320857,8.01924823,4282.2,4282.1,1.2533]
[1757436322083,8.13524823,4282.2,4282.1,1.2533]
[1757436323635,8.78577914,4282.2,4282.1,0.042]
[1757436323933,14.61516325,4282.2,4282.1,0.042]
[1757436324135,14.15096325,4282.2,4282.1,0.042]
[1757436325001,14.61516325,4282.2,4282.1,0.042]
[1757436325397,14.15096325,4282.2,4282.1,0.042]
[1757436325597,15.68661061,4282.2,4282.1,0.042]
[1757436325838,14.84896325,4282.2,4282.1,0.042]
[1757436326601,15.68749173,4282.2,4282.1,0.042]
[1757436327418,15.33769173,4282.2,4282.1,0.042]
[1757436330004,14.49916325,4282.2,4282.1,0.042]
[1757436330206,14.03496325,4282.2,4282.1,0.042]
[1757436331124,14.49916325,4282.2,4282.1,0.042]
[1757436331838,14.84896325,4282.2,4282.1,0.042]
[1757436332740,14.49916325,4282.2,4282.1,0.042]
[1757436333148,14.03496325,4282.2,4282.1,0.042]
[1757436333348,14.36235083,4282.2,4282.1,0.042]
[1757436335144,14.54450711,4282.2,4282.1,0.042]
[1757436335671,10.47080711,4282.2,4282.1,0.3571]
[1757436335953,8.74023618,4282.2,4282.1,1.2617]
[1757436336116,4.34670732,4282.2,4282.1,1.2617]
[1757436336332,8.01924823,4282.2,4282.1,1.2617]
[1757436338035,8.01924823,4282.2,4282.1,0.804]
[1757436338230,8.5216136,4282.2,4282.1,0.804]
[1757436338447,8.01924823,4282.2,4282.1,0.804]
[1757436340259,8.01924823,4282.2,4282.1,1.2617]
[1757436340462,5.684,4282.2,4282.1,1.2617]
[1757436340795,8.01924823,4282.2,4282.1,1.2617]
[1757436342896,8.30454823,4282.2,4282.1,0.042]
[1757436343210,11.31309559,4282.2,4282.1,0.042]
[1757436343518,10.6324617,4282.2,4282.1,0.042]
[1757436343721,10.3471617,4282.2,4282.1,0.042]
[1757436343925,10.6324617,4282.2,4282.1,0.042]
[1757436344521,10.85038649,4282.2,4282.1,0.042]
[1757436347013,10.3461617,4282.2,4282.1,0.3571]
[1757436347166,8.52041501,4282.2,4282.1,0.804]
[1757436347367,8.01824823,4282.2,4282.1,0.804]
[1757436347567,4.12824823,4282.2,4282.1,0.3571]
[1757436347767,4.12824823,4282.2,4282.1,1.2617]
[1757436347969,8.01824823,4282.2,4282.1,1.2617]
[1757436348340,5.683,4282.2,4282.1,1.2617]
[1757436348549,8.01824823,4282.2,4282.1,1.2617]
[1757436349104,5.683,4282.2,4282.1,1.2617]
[1757436349528,8.01824823,4282.2,4282.1,1.2617]
[1757436351734,4.12824823,4282.2,4282.1,1.2617]
[1757436351925,8.01824823,4282.2,4282.1,1.2617]
[1757436353447,8.01824823,4282.2,4282.1,0.804]
[1757436353746,8.01824823,4282.2,4282.1,1.2617]
[1757436355993,8.01824823,4282.2,4282.1,0.804]
[1757436356153,8.41890946,4282.2,4282.1,0.042]
[1757436356487,8.23620946,4282.2,4282.1,0.042]
[1757436356998,8.01824823,4282.2,4282.1,0.8148]
[1757436357201,8.01824823,4282.2,4282.1,1.2617]
[1757436357555,8.01824823,4282.2,4282.1,0.804]
[1757436359095,8.23628596,4282.2,4282.1,0.804]
[1757436359958,0.21803773,4282.2,4282.1,1.2617]
[1757436360182,3.89,4282.2,4282.1,1.41412302]
[1757436360382,3.89,4282.2,4282.1,3.72607277]
[1757436361659,3.89,4282.2,4282.1,1.39077]
[1757436363199,3.89,4282.2,4282.1,3.72607277]
[1757436363899,3.89,4282.2,4282.1,1.39077]
[1757436364198,3.89,4282.2,4282.1,3.72607277]
[1757436364559,0.001,4282.3,4282.1,1.39077]
[1757436364761,0.001,4282.3,4282.2,1.29031107]
[1757436364989,3.891,4282.3,4282.2,1.29031107]
[1757436365174,3.891,4282.3,4282.2,1.59411107]
[1757436365796,3.891,4282.3,4282.2,1.2211]
[1757436366602,3.891,4282.3,4282.2,3.55634823]
[1757436368867,3.891,4282.3,4282.2,1.2211]
[1757436369076,3.891,4282.3,4282.1,0.17107]
[1757436369277,2.82064823,4282.2,4282.1,0.042]
[1757436369486,3.27814823,4282.2,4282.1,0.042]
[1757436369703,3.47294823,4282.2,4282.1,0.042]
[1757436371915,3.01544823,4282.2,4282.1,0.042]
[1757436372433,0.1948,4282.2,4282.1,0.042]
[1757436372836,4.0838,4282.2,4282.1,0.042]
[1757436373544,6.41904823,4282.2,4282.1,0.042]
[1757436373830,0.117,4282.3,4282.1,0.042]
[1757436373831,2.45219933,4282.3,4282.1,0.042]
[1757436374129,0.001,4282.3,4282.1,0.8046]
[1757436374301,3.889,4282.2,4282.1,0.3458]
[1757436374710,3.889,4282.2,4282.1,0.48661]
[1757436374913,3.889,4282.2,4282.1,1.2631]
[1757436375330,3.889,4282.2,4282.1,0.8046]
[1757436376565,3.889,4282.2,4282.1,0.3458]
[1757436377049,3.889,4282.2,4282.1,0.042]
[1757436377611,3.889,4282.2,4282.1,0.3458]
[1757436377841,3.889,4282.2,4282.1,0.8046]
[1757436378044,3.889,4282.2,4282.1,1.2631]
[1757436379057,3.889,4282.2,4282.1,0.8046]
[1757436380146,3.889,4282.2,4282.1,0.3458]
[1757436380335,3.889,4282.2,4282.1,0.042]
[1757436380530,6.41644823,4282.2,4282.1,0.042]
[1757436380930,4.0812,4282.2,4282.1,0.042]
[1757436381147,6.41644823,4282.2,4282.1,0.042]
[1757436381444,6.22424823,4282.2,4282.1,0.042]
[1757436381644,6.41904823,4282.2,4282.1,0.042]
[1757436381810,6.22424823,4282.2,4282.1,0.042]
[1757436382242,6.50984823,4282.2,4282.1,0.042]
[1757436382741,6.22424823,4282.2,4282.1,0.042]
[1757436384115,6.17424823,4282.2,4282.1,0.042]
[1757436385232,6.45984823,4282.2,4282.1,0.042]
[1757436385640,6.17424823,4282.2,4282.1,0.042]
[1757436385938,6.17424823,4282.2,4282.1,0.8046]
[1757436385939,3.839,4282.2,4282.1,0.8046]
[1757436386716,3.839,4282.2,4282.1,0.3458]
[1757436388652,6.17424823,4282.2,4282.1,0.042]
[1757436388853,6.45984823,4282.2,4282.1,0.042]
[1757436389696,4.1246,4282.2,4282.1,0.042]
[1757436390149,3.839,4282.2,4282.1,0.042]
[1757436390530,6.45984823,4282.2,4282.1,0.042]
[1757436390887,4.1246,4282.2,4282.1,0.042]
[1757436391264,6.45984823,4282.2,4282.1,0.042]
[1757436392192,6.95934823,4282.2,4282.1,0.042]
[1757436392356,7.32434823,4282.2,4282.1,0.042]
[1757436392968,4.6241,4282.2,4282.1,0.042]
[1757436393174,4.1246,4282.2,4282.1,0.042]
[1757436393504,3.839,4282.2,4282.1,0.042]
[1757436393654,6.37224823,4282.2,4282.1,0.042]
[1757436394167,4.037,4282.2,4282.1,0.042]
[1757436394465,3.839,4282.2,4282.1,0.042]
[1757436395342,6.17424823,4282.2,4282.1,0.042]
[1757436395767,6.48504823,4282.2,4282.1,0.042]
[1757436396625,6.98454823,4282.2,4282.1,0.042]
[1757436396868,7.32464823,4282.2,4282.1,0.042]
[1757436397081,8.04520728,4282.2,4282.1,0.042]
[1757436397286,7.32464823,4282.2,4282.1,0.042]
[1757436398261,8.04548711,4282.2,4282.1,0.042]
[1757436398460,8.0454871,4282.2,4282.1,0.042]
[1757436402500,7.7053871,4282.2,4282.1,0.042]